[Event "ChessKid Cup Div-II 2023"]
[Site "Online"]
[Date "2023.05.24"]
[Round "3.2"]
[White "Oparin, Grigoriy"]
[Black "Nguyen, Ngoc Truong Son"]
[Result "1-0"]
[ECO "C43"]
[WhiteElo "2667"]
[BlackElo "2645"]
[Annotator "TA"]
[PlyCount "195"]
[EventDate "2023.05.21"]
[EventType "k.o."]
[EventCountry "NET"]
[SourceTitle "playchess.com"]
[Source "ChessBase"]
[SourceQuality "1"]
[TimeControl "900+3"]

{[%evp 25,194,-19,0,-21,0,-6,-18,-14,-20,-9,0,0,0,0,0,0,8,0,17,27,19,14,22,0,4,0,0,0,50,42,34,0,0,-31,-14,-6,0,0,0,0,0,0,0,0,0,0,0,0,0,0,0,0,0,0,0,0,0,0,0,0,0,0,0,0,0,0,0,0,0,0,0,0,0,0,0,0,27,27,80,80,80,80,95,80,80,80,80,92,119,0,0,0,0,0,0,0,0,0,0,0,0,0,0,0,0,0,0,0,0,0,0,0,0,0,412,339,266,270,237,210,1468,1341,931,3477,1088,2329,1902,1708,1512,1512,1160,1054,967,910,890,873,1026,1026,897,846,843,822,802,0,811,506,1708,1621,29975,29976,29976,29977,29981,29975,29967,29965,29982,29982,29982,29983,29983,29984,29984,29985,29987,29988,29989,29990,29993,29993,29997]} 1. e4 {[%emt 0:00:12]} e5 {[%emt 0:00:10]} 2. Nf3 {[%emt 0:00:01]} Nf6 {[%emt 0:00:03]} 3. d4 {[%emt 0:00:05]} Nxe4 {[%emt 0:00:04]} 4. Bd3 {[%emt 0:00:01]} d5 {[%emt 0:00:03]} 5. Nxe5 {[%emt 0:00:01]} Nd7 {[%emt 0:00:02]} 6. Nc3 {[%emt 0:00:01]} Nxe5 {[%emt 0:00:24]} 7. dxe5 {[%emt 0:00:01]} Nxc3 {[%emt 0:00:07]} 8. bxc3 {[%emt 0:00:01]} Bc5 {[%emt 0:00:03]} 9. O-O {[%emt 0:00:01]} O-O {[%emt 0:00:23]} 10. Rb1 {[%emt 0:00:01]} c6 {[%emt 0:01:29]} 11. Re1 {[%emt 0:00:14]} Qh4 {[%emt 0:01:38]} 12. Be3 {[%emt 0:00:02]} b6 {[%emt 0:00:03]} 13. h3 {[%emt 0:00:18]} Be6 {[%emt 0:00:29]} 14. Qf3 {[%emt 0:00:23]} Rad8 {[%emt 0:01:33]} 15. Bxc5 {[%emt 0:00:45]} bxc5 {[%emt 0:00:00]} 16. Rb7 {[%emt 0:00:01]} Qg5 {[%emt 0:01:27]} 17. c4 {[%emt 0:01:04]} (17. Rxa7 c4 18. h4 Qxh4 $17) (17. Qe3 {simplifies} Qxe3 18. fxe3 c4 19. Be2) 17... dxc4 {[%emt 0:00:10]} 18. Be4 {[%emt 0:00:01]} g6 {[%emt 0:00:48]} 19. Bxc6 {[%emt 0:00:18]} (19. Rxa7 Qxe5 20. Qe3 Ra8 21. Rxa8 Rxa8 $17) 19... Qd2 {[%emt 0:00:38]} 20. Re2 {[%emt 0:00:02]} Qd1+ {[%emt 0:00:44]} 21. Kh2 {[%emt 0:00:02]} Rd2 {[%emt 0:01:19]} 22. Rxd2 {[%emt 0:01:01]} Qxd2 {[%emt 0:00:00]} 23. c3 {[%emt 0:00:01]} (23. Rxa7 Qxc2 24. Qe3 Qb2 $15) 23... Qxa2 {[%emt 0:00:46]} 24. Qe3 {[%emt 0:00:01]} a5 {[%emt 0:01:23]} 25. Ra7 {[%emt 0:00:03]} (25. Qxc5 Qd2 $15) 25... Qb1 {[%emt 0:00:11]} 26. Be4 {[%emt 0:00:53]} (26. Rxa5 $2 Qb6 27. Qxc5 (27. Rxc5 $2 Rc8 $19) 27... Qxc5 28. Rxc5 Rc8 $17) 26... Qb8 {[%emt 0:00:07]} (26... Qb6 $11 27. Rb7 Qd8) 27. Qxc5 $14 {[%emt 0:00:02]} Rc8 {[%emt 0:00:05]} 28. Qxa5 {[%emt 0:00:07]} (28. Qd4 $5 {[%cal Ra7b7]} Qb5 29. f4 $14) 28... Qb2 {[%emt 0:00:19]} 29. Kg3 {[%emt 0:01:30]} Qd2 {[%emt 0:00:07]} 30. Ra8 {[%emt 0:00:01]} g5 {[%emt 0:00:38]} 31. Rxc8+ {[%emt 0:00:03]} Bxc8 {[%emt 0:00:01]} 32. Kh2 {[%emt 0:00:28]} Qf4+ {[%emt 0:00:07]} (32... Qxf2 $2 33. Qd8+ Kg7 34. Qxg5+ (34. Qxc8 Qf4+ 35. g3 Qxe4 $11) 34... Kf8 35. Qd8+ Kg7 36. Qg5+ Kf8 37. Bxh7 $18) 33. g3 {[%emt 0:00:01]} Qxf2+ {[%emt 0:00:52]} ({Don't do} 33... Qxe4 34. Qd8+ Kg7 35. Qf6+ (35. Qxc8 Qf3 $11) 35... Kf8 36. Qh8+ (36. Qxg5 $2 Qd5 $19) 36... Ke7 37. Qxc8 $14) 34. Bg2 {[%emt 0:00:01]} Kg7 {[%emt 0:00:12]} 35. e6 {[%emt 0:01:07]} Bxe6 {[%emt 0:00:02]} 36. Qxg5+ {[%emt 0:00:01]} Kf8 {[%emt 0:00:03]} 37. Qe5 {[%emt 0:00:09]} Kg8 {[%emt 0:00:02]} 38. h4 {[%emt 0:00:11]} Qd2 {[%emt 0:00:09]} 39. Qf6 {[%emt 0:00:17]} h6 {[%emt 0:00:09]} 40. Qe5 {[%emt 0:00:07]} Kf8 {[%emt 0:00:03]} 41. Kg1 {[%emt 0:00:18]} Qc1+ {[%emt 0:00:04]} 42. Kf2 {[%emt 0:00:32]} Qd2+ {[%emt 0:00:00]} 43. Kf1 {[%emt 0:00:01]} Qd1+ {[%emt 0:00:03]} 44. Qe1 {[%emt 0:00:03]} Qd3+ {[%emt 0:00:02]} 45. Kf2 {[%emt 0:00:02]} Qc2+ {[%emt 0:00:01]} 46. Kg1 {[%emt 0:00:04]} Qd3 {[%emt 0:00:02]} 47. Qe5 {[%emt 0:00:04]} Qd1+ {[%emt 0:00:02]} 48. Bf1 {[%emt 0:00:22]} Bh3 {[%emt 0:00:09]} 49. Qc5+ {[%emt 0:00:02]} Kg8 {[%emt 0:00:02]} 50. Qxc4 {[%emt 0:00:00]} Bxf1 {[%emt 0:00:01]} 51. Qxf1 {[%emt 0:00:01]} Qd2 {[%emt 0:00:05]} (51... Qd5 $1 $11) 52. Qf3 $16 {[%emt 0:00:05]} Qc2 {[%emt 0:00:03]} 53. Qe3 {[%emt 0:00:06]} Kg7 {[%emt 0:00:03]} 54. Qd4+ {[%emt 0:00:06]} f6 {[%emt 0:00:02]} 55. c4 {[%emt 0:00:04]} h5 {[%emt 0:00:02]} 56. c5 {[%emt 0:00:03]} Kg6 {[%emt 0:00:03]} 57. Qf2 {[%emt 0:00:14]} (57. Kf1 $16) 57... Qe4 {[%emt 0:00:04]} 58. Kh2 {[%emt 0:00:13]} Qc4 $1 {[%emt 0:00:02]} 59. Qe3 {[%emt 0:00:03]} Qc2+ {[%emt 0:00:02]} 60. Kg1 {[%emt 0:00:01]} Kf7 {[%emt 0:00:10]} 61. Kf1 {[%emt 0:00:14]} Qc4+ {[%emt 0:00:03]} 62. Kf2 {[%emt 0:00:05]} Qc2+ {[%emt 0:00:02]} 63. Ke1 {[%emt 0:00:04]} Qc4 {[%emt 0:00:05]} 64. Kd1 {[%emt 0:00:12]} Qa4+ {[%emt 0:00:02]} 65. Kd2 {[%emt 0:00:07]} Qa2+ {[%emt 0:00:02]} ({Resist} 65... Qc4 66. Qc3 Qd5+ 67. Kc1 $16) 66. Kc3 {[%emt 0:00:11]} Qa3+ $1 {[%emt 0:00:03]} 67. Kd4 {[%emt 0:00:00]} Qa4+ {[%emt 0:00:01]} 68. Kd5 {[%emt 0:00:16]} Qd7+ {[%emt 0:00:02]} 69. Ke4 {[%emt 0:00:01]} Qa4+ $2 {[%emt 0:00:04][%mdl 8192]} (69... Qc6+ $11 {and Black is okay.} 70. Kf4 Qc8) 70. Qd4 $18 {[%emt 0:00:15]} Qe8+ {[%emt 0:00:06]} 71. Kd3 {[%emt 0:00:03]} Qc6 {[%emt 0:00:03]} 72. Kc3 {[%emt 0:00:09]} Kg7 $2 {[%emt 0:00:04]} (72... Ke7 73. Kd3 Qc7) 73. Qd6 $18 {[%emt 0:00:05]} Qf3+ {[%emt 0:00:03]} 74. Kb4 {[%emt 0:00:05]} Qb7+ {[%emt 0:00:01]} 75. Ka5 {[%emt 0:00:08]} Qa7+ {[%emt 0:00:02]} 76. Kb5 {[%emt 0:00:01]} Qb7+ {[%emt 0:00:02]} 77. Qb6 {[%emt 0:00:01]} Qd5 {[%emt 0:00:01]} 78. Qc7+ {[%emt 0:00:04]} Kg6 {[%emt 0:00:01]} 79. Qf4 {[%emt 0:00:06]} Qb7+ {[%emt 0:00:02]} 80. Kc4 {[%emt 0:00:02]} Qa6+ {[%emt 0:00:04]} 81. Kd5 {[%emt 0:00:03]} Qb5 {[%emt 0:00:06]} 82. Qe4+ {[%emt 0:00:06]} Kg7 {[%emt 0:00:02]} 83. Qe7+ {[%emt 0:01:13]} Kg6 {[%emt 0:00:02]} 84. Qe6 {[%emt 0:00:16]} Qb3+ $2 {[%emt 0:00:02][%mdl 8192]} (84... Qd3+ $11 85. Kc6 Qa6+ 86. Kd7 Qa7+ 87. Kd6 Qb8+ 88. Kc6 Qa8+ 89. Kb5 Qb8+ 90. Ka5 Qc7+ 91. Kb5 Qb8+ 92. Ka5 Qa7+ 93. Kb4 Qb8+ 94. Kc4 Qa8) 85. Kd6 $18 {[%emt 0:00:00]} Qxg3+ {[%emt 0:00:01]} (85... Qb8+ $142 86. Kc6 Qa8+ 87. Kb5 Qb7+ 88. Kc4 Qa8) 86. Kd7 $18 {[%emt 0:00:01]} Qd3+ {[%emt 0:00:06]} 87. Ke8 {[%emt 0:00:10]} Qb5+ {[%emt 0:00:04]} 88. c6 {[%emt 0:00:01]} Qa4 {[%emt 0:00:10]} 89. Qd5 {[%emt 0:00:14]} Qa8+ {[%emt 0:00:05]} 90. Kd7 {[%emt 0:00:02]} Kg7 {[%emt 0:00:01]} 91. Qd4 {[%emt 0:00:11]} Kf7 {[%emt 0:00:04]} 92. Qc4+ {[%emt 0:00:07]} Kf8 {[%emt 0:00:03]} 93. c7 {[%emt 0:00:11]} Qe8+ {[%emt 0:00:02]} 94. Kd6 {[%emt 0:00:00]} Qc8 {[%emt 0:00:03]} 95. Qc6 {[%emt 0:00:31]} f5 {[%emt 0:00:04]} 96. Ke5 {[%emt 0:00:05]} Ke7 {[%emt 0:00:04]} 97. Qd6+ {[%emt 0:00:01]} Ke8 {[%emt 0:00:01]} 98. Qe6+ {[%emt 0:00:02]} 1-0

[Event "ChessKid Cup Div-II 2023"]
[Site "Online"]
[Date "2023.05.24"]
[Round "3.2"]
[White "Sadhwani, Raunak"]
[Black "Fedoseev, Vladimir"]
[Result "0-1"]
[ECO "D12"]
[WhiteElo "2627"]
[BlackElo "2680"]
[Annotator "TA"]
[PlyCount "110"]
[EventDate "2023.05.21"]
[EventType "k.o."]
[EventCountry "NET"]
[SourceTitle "playchess.com"]
[Source "ChessBase"]
[SourceQuality "1"]
[TimeControl "900+3"]

{[%evp 11,110,25,30,18,27,36,36,6,16,0,18,-22,-10,-10,-18,-21,-22,-52,-13,-63,-63,-115,-126,-191,-185,-185,-187,-187,-179,-187,-117,-112,-122,-114,-120,-116,-111,-129,-114,-137,-141,-147,-142,-196,-190,-187,-196,-193,-175,-200,-189,-178,-190,-184,-132,-140,-141,-140,-125,-133,-123,-151,-114,-144,-72,-73,-70,-75,-71,-71,-71,-81,-56,-71,-25,-55,0,0,0,0,0,-566,-464,-407,-393,-606,-608,-592,-588,-1796,-1752,-5102,-4592,-29966,-29968,-29969,-29970,-5684,-1408,-29963,-4598]} 1. d4 {[%emt 0:00:03]} d5 {[%emt 0:00:05]} 2. c4 {[%emt 0:00:02]} c6 {[%emt 0:00:02]} 3. Nf3 {[%emt 0:00:02]} Nf6 {[%emt 0:00:02]} 4. e3 {[%emt 0:00:01]} Bf5 {[%emt 0:00:03]} 5. Nc3 {[%emt 0:00:02]} e6 {[%emt 0:00:01]} 6. Nh4 {[%emt 0:00:01]} Bg6 {[%emt 0:00:02]} 7. Qb3 {[%emt 0:00:08] D12: Slav Defence: 3 Nf3 Nf6 4 e3 Bf5.} Qc7 {[%emt 0:00:12]} 8. Nxg6 {[%emt 0:00:03]} hxg6 {[%emt 0:00:05]} 9. Bd2 {[%emt 0:00:05] White is slightly better.} Nbd7 {[%emt 0:00:18]} 10. Rc1 {[%emt 0:00:01]} Nb6 {[%emt 0:00:32]} 11. g3 {[%emt 0:00:33]} Nxc4 {[%emt 0:00:27]} 12. Bxc4 {[%emt 0:00:00]} dxc4 {[%emt 0:00:01]} 13. Qxc4 {[%emt 0:00:00] [#]} Be7 $146 {[%emt 0:00:14]} ({Predecessor:} 13... Qd7 14. e4 Rd8 15. Be3 b5 16. Qd3 Ng4 17. Qe2 Nxe3 18. fxe3 e5 19. d5 b4 20. dxc6 Qxc6 {1-0 Shankland,S (2597)-Holt,C (2496) USA tt ICC INT 2012 (2)}) 14. O-O {[%emt 0:00:04]} Qd7 {[%emt 0:01:11]} (14... Ng4 $5 {[%cal Rg4h2]} 15. h4 Bxh4 $11) 15. Qe2 {[%emt 0:00:10]} (15. Rfd1 $11) 15... e5 $15 {[%emt 0:00:42]} 16. h4 {[%emt 0:01:02]} (16. f3 $15) 16... Qh3 $17 {[%emt 0:00:27]} (16... exd4 $6 17. exd4 O-O 18. Be3 $11) 17. Qf3 {[%emt 0:00:13]} (17. Rfd1 $17 {was worth a try.}) 17... exd4 $19 {[%emt 0:00:20]} (17... Rxh4 18. Qg2 Qxg2+ 19. Kxg2 $17) 18. exd4 {[%emt 0:00:04]} Rxh4 {[%emt 0:00:12][%csl Gh4][%cal Rh3h2][%mdl 64] Pin} 19. Rfe1 {[%emt 0:00:16][%cal Oe1e7] [#]} Qh2+ $1 {[%emt 0:00:08]} ({Don't take} 19... Rxd4 20. Rxe7+ Kxe7 21. Qe3+ Kf8 22. Qxd4 $16) 20. Kf1 {[%emt 0:00:01]} Qh1+ {[%emt 0:00:01]} (20... Rxd4 $19 21. Be3 (21. Rxe7+ $2 Kxe7 22. Qe3+ Re4 $19 {[%mdl 64] Decoy}) 21... Rd7) 21. Qxh1 $17 {[%emt 0:00:01]} Rxh1+ {[%emt 0:00:01]} 22. Kg2 {[%emt 0:00:03]} Rxe1 {[%emt 0:00:01]} 23. Rxe1 {[%emt 0:00:00]} Kd7 {[%emt 0:00:23]} 24. Bg5 {[%emt 0:00:08]} Bb4 {[%emt 0:00:52]} 25. Bxf6 {[%emt 0:00:44]} gxf6 {[%emt 0:00:03][%mdl 4096] Endgame KRB-KRN} 26. Kf3 {[%emt 0:00:03]} Rh8 {[%emt 0:00:10]} 27. Rd1 {[%emt 0:00:12]} (27. a3 $17 {was necessary.} Be7 28. Ne4) 27... Bxc3 $19 {[%emt 0:00:36]} 28. bxc3 {[%emt 0:00:01] KR-KR} Rh5 {[%emt 0:00:01]} 29. Rb1 {[%emt 0:00:03]} b6 {[%emt 0:02:13]} 30. a4 {[%emt 0:00:17]} Kd6 {[%emt 0:00:06]} 31. Ke3 {[%emt 0:00:03]} Ra5 {[%emt 0:00:21]} 32. Rb4 {[%emt 0:00:02]} c5 {[%emt 0:00:31]} (32... f5 $19 33. Kd3 Ke6) 33. dxc5+ $17 {[%emt 0:00:11]} Rxc5 {[%emt 0:00:05]} 34. Kd3 {[%emt 0:00:01]} Rd5+ {[%emt 0:00:15]} 35. Kc2 {[%emt 0:00:07]} Rf5 {[%emt 0:00:08]} 36. Rd4+ {[%emt 0:00:02]} Kc6 {[%emt 0:00:06]} 37. Rc4+ {[%emt 0:00:09]} Kb7 {[%emt 0:00:29]} (37... Kd5 $142 38. Rd4+ Ke6 39. Re4+ Kd5 40. Rd4+ Ke6 41. Re4+ Re5) 38. f4 {[%emt 0:00:05]} Rd5 {[%emt 0:00:03]} 39. Re4 $1 {[%emt 0:00:02]} Kc6 {[%emt 0:00:01]} 40. Re7 {[%emt 0:00:11]} Rd7 {[%emt 0:00:02]} 41. Re4 {[%emt 0:00:01]} f5 {[%emt 0:00:10]} 42. Re3 {[%emt 0:00:02]} a5 {[%emt 0:00:28]} ({Black should try} 42... Kc5 $17) 43. Kb3 {[%emt 0:00:06]} Rd6 {[%emt 0:00:04]} (43... Kc5 $15) 44. Re7 $1 $11 {[%emt 0:00:13]} Rd3 {[%emt 0:00:20]} 45. Rxf7 {[%emt 0:00:04]} Kd5 {[%emt 0:01:18]} ({Don't play} 45... Rxg3 46. Kc4) 46. Rf6 $2 {[%emt 0:00:52][%mdl 8192]} (46. Rd7+ $1 $11 {and White stays safe.} Ke4 47. Re7+ Kf3 48. Re6) 46... Rxg3 $19 {[%emt 0:00:02]} 47. Rxb6 {[%emt 0:00:02]} Ke4 {[%emt 0:00:01]} 48. Ra6 {[%emt 0:00:08]} (48. Kc2 $142 Kxf4 49. c4) 48... Kxf4 {[%emt 0:00:03]} 49. Rxa5 {[%emt 0:00:01]} g5 {[%emt 0:00:10][%cal Bg6g5,Bg5g4,Bg4g3][%mdl 32]} 50. Ra8 {[%emt 0:00:09]} g4 {[%emt 0:00:04] And now ...Rg1 would win.} 51. a5 {[%emt 0:00:01]} Rg1 {[%emt 0:00:07] ( -> ...g3)} 52. a6 {[%emt 0:01:08]} Ra1 {[%emt 0:00:12]} 53. a7 {[%emt 0:00:02]} g3 {[%emt 0:00:08]} 54. c4 {[%emt 0:00:01]} Rb1+ {[%emt 0:00:11]} (54... g2 $142 55. Rg8 Kf3) 55. Kc2 {[%emt 0:00:14] [#]} Rb7 $1 {[%emt 0:00:02] Weighted Error Value: White=0.81/Black=0.22 (precise)} 0-1

[Event "ChessKid Cup Div-II 2023"]
[Site "Online"]
[Date "2023.05.24"]
[Round "3.3"]
[White "Fedoseev, Vladimir"]
[Black "Sadhwani, Raunak"]
[Result "1/2-1/2"]
[ECO "B22"]
[WhiteElo "2680"]
[BlackElo "2627"]
[Annotator "TA"]
[PlyCount "41"]
[EventDate "2023.05.21"]
[EventType "k.o."]
[EventCountry "NET"]
[SourceTitle "playchess.com"]
[Source "ChessBase"]
[SourceQuality "1"]
[TimeControl "900+3"]

{[%evp 13,41,4,16,12,18,13,14,14,25,15,20,20,15,0,0,0,12,12,11,15,16,14,20,0,11,0,1,0,18,13]} 1. e4 {[%emt 0:00:03]} c5 {[%emt 0:00:04]} 2. Nf3 {[%emt 0:00:03]} e6 {[%emt 0:00:01]} 3. c3 {[%emt 0:00:30]} Nf6 {[%emt 0:00:11]} 4. e5 {[%emt 0:00:03]} Nd5 {[%emt 0:00:01]} 5. d4 {[%emt 0:00:01]} cxd4 {[%emt 0:00:00]} 6. cxd4 {[%emt 0:00:01]} d6 {[%emt 0:00:00]} 7. Bc4 {[%emt 0:00:03]} Be7 {[%emt 0:00:02]} 8. O-O {[%emt 0:00:02] B22: Sicilian: 2 c3.} O-O {[%emt 0:00:00]} 9. Qe2 {[%emt 0:00:47]} b6 {[%emt 0:00:11]} 10. Rd1 {[%emt 0:01:13]} Bb7 {[%emt 0:00:01]} 11. Bxd5 {[%emt 0:00:04]} exd5 {[%emt 0:00:00] The position is equal.} 12. Nc3 {[%emt 0:00:06]} Na6 {[%emt 0:00:02][%cal Bb8a6,Ba6c7,Bc7e6][%mdl 32]} 13. Bf4 {[%emt 0:00:15]} Nc7 {[%emt 0:00:04]} 14. Rac1 {[%emt 0:00:42]} Ne6 {[%emt 0:00:02]} 15. exd6 {[%emt 0:00:26]} Bxd6 {[%emt 0:00:06]} 16. Bxd6 {[%emt 0:00:01]} Qxd6 {[%emt 0:00:00]} 17. Qe5 {[%emt 0:00:14]} Qd7 {[%emt 0:00:02] [#]} 18. Ng5 $146 {[%emt 0:00:08]} ({Predecessor:} 18. Qf5 Rad8 19. Re1 Nc7 20. Nh4 Bc8 21. Qf4 Ne6 22. Qd2 g6 23. Nf3 f6 24. Re3 {1-0 Yatzenko,A (2361)-Neiksans,A (2627) PRO League Eastern rapid 2017 (3)}) 18... Rfe8 {[%emt 0:00:03] [#] And now ...f6 would win.} 19. Qf5 {[%emt 0:00:11]} g6 $1 {[%emt 0:00:04]} ({Don't play} 19... Nf8 20. Qxd7 Nxd7 21. Nb5 $14) 20. Qh3 {[%emt 0:00:01]} h5 {[%emt 0:00:07]} 21. Re1 {[%emt 0:00:13] An uneventful encounter.   Weighted Error Value: White=0.05 (flawless) /Black=0.04 (flawless)} 1/2-1/2

[Event "ChessKid Cup Div-II 2023"]
[Site "Online"]
[Date "2023.05.24"]
[Round "3.3"]
[White "Nguyen, Ngoc Truong Son"]
[Black "Oparin, Grigoriy"]
[Result "1-0"]
[ECO "E05"]
[WhiteElo "2645"]
[BlackElo "2667"]
[Annotator "TA"]
[PlyCount "116"]
[EventDate "2023.05.21"]
[EventType "k.o."]
[EventCountry "NET"]
[SourceTitle "playchess.com"]
[Source "ChessBase"]
[SourceQuality "1"]
[TimeControl "900+3"]

{[%evp 18,116,13,15,14,0,0,0,0,0,0,-5,28,18,21,16,22,16,22,18,19,20,30,15,16,14,8,0,8,0,12,0,0,0,56,56,81,78,59,74,131,131,156,58,58,58,545,552,515,485,847,276,29973,50,29974,29975,29975,29976,29976,29977,29968,29969,1571,582,582,572,562,523,1254,1272,29970,29971,29957,10992,29967,29968,29968,4133,29969,29968,29970,29969,29965,29968,29972,29973,29973,29975,29974,29975,29975,29976,29976,29977,29977,29978,29978,29979,29978,29979,29979]} 1. d4 {[%emt 0:00:05]} Nf6 {[%emt 0:00:04]} 2. Nf3 {[%emt 0:00:02]} d5 {[%emt 0:00:01]} 3. c4 {[%emt 0:00:03]} e6 {[%emt 0:00:01]} 4. g3 {[%emt 0:00:01]} Be7 {[%emt 0:00:00]} 5. Bg2 {[%emt 0:00:02]} O-O {[%emt 0:00:01]} 6. O-O {[%emt 0:00:01]} dxc4 {[%emt 0:00:00]} 7. Qc2 {[%emt 0:00:01]} a6 {[%emt 0:00:01]} 8. a4 {[%emt 0:00:04]} Bd7 {[%emt 0:00:01]} 9. Qxc4 {[%emt 0:00:06]} Bc6 {[%emt 0:00:00]} 10. Bg5 {[%emt 0:00:02]} Nbd7 {[%emt 0:00:02] E05: Open Catalan: 5 Nf3 Be7.} 11. e3 $5 {[%emt 0:00:02][%mdl 4] Leaves trodden paths.} h6 {[%emt 0:00:00]} 12. Bxf6 {[%emt 0:00:02]} Nxf6 {[%emt 0:00:00] The position is equal.} 13. Nbd2 {[%emt 0:00:04]} Bd5 {[%emt 0:00:01] A strong pair of Bishops.} 14. Qc2 {[%emt 0:00:31] [#]} Bxf3 $146 {[%emt 0:01:26]} (14... b6 {is more complex.} 15. Ne5 c5 16. dxc5 Bxc5 17. Ne4 Nxe4 18. Bxe4 Rc8) ({Predecessor:} 14... Bb4 15. Rfc1 Rc8 16. Nb3 b6 17. a5 Bxb3 18. Qxb3 bxa5 19. Ne5 c5 20. dxc5 Nd5 {0-1 Amarasinghe,A (1873)-Zemach,R (2235) Titled Tuesday intern op 25th May blitz 2021 (1)}) 15. Bxf3 {[%emt 0:00:30]} c6 {[%emt 0:00:01]} 16. Nc4 {[%emt 0:00:18]} a5 {[%emt 0:00:05]} 17. h4 {[%emt 0:00:23]} Bb4 {[%emt 0:00:04]} 18. Rfd1 {[%emt 0:00:22]} Nd7 {[%emt 0:00:14]} 19. Kg2 {[%emt 0:00:15]} Qe7 {[%emt 0:00:02]} 20. h5 {[%emt 0:00:23]} Rfd8 {[%emt 0:00:05]} 21. b3 {[%emt 0:00:13]} Rac8 {[%emt 0:00:10]} 22. Be2 {[%emt 0:01:43]} Rc7 {[%emt 0:01:25]} 23. Rd3 {[%emt 0:01:00]} Rcc8 {[%emt 0:01:08]} 24. Rad1 {[%emt 0:00:17]} b5 {[%emt 0:00:04]} 25. Ne5 {[%emt 0:00:06]} Nxe5 {[%emt 0:00:08]} (25... bxa4 $11 26. bxa4 c5) 26. dxe5 $14 {[%emt 0:00:00][%cal Oc2c6]} Rxd3 {[%emt 0:00:11]} 27. Qxd3 {[%emt 0:00:26]} bxa4 {[%emt 0:00:02] Black is weak on the light squares} 28. bxa4 {[%emt 0:00:02]} c5 {[%emt 0:00:00] [#]} ({Black should play} 28... Qc7) 29. Qe4 $1 $16 {[%emt 0:00:09]} Qc7 {[%emt 0:01:06]} 30. Bc4 {[%emt 0:04:39] White is much more active.} (30. Bd3 $16 {Black must now prevent Qh7+.} Qc6 31. Qxc6 Rxc6 32. Bc4) 30... Rd8 $1 $14 {[%emt 0:00:05]} 31. Rd3 {[%emt 0:00:10]} Kf8 $2 {[%emt 0:00:34][%mdl 8192] White leaves nothing to chance now.} (31... Rxd3 $14 32. Bxd3 Kf8) 32. Rxd8+ $18 {[%emt 0:00:47]} Qxd8 {[%emt 0:00:02][%mdl 4096] Endgame KQB-KQB} 33. Qh7 {[%emt 0:00:13]} Qa8+ {[%emt 0:00:46]} (33... Bc3 $142 34. Qh8+ {[%mdl 64] Deflection} Ke7 35. Qxg7 Qc7 36. Qf6+ (36. Qxh6 Qxe5 37. Qh7 Qf5 $16) 36... Kf8 37. Qxh6+ (37. Bxe6 $2 Qc6+ $19 {[%mdl 64] Pin, Double Attack}) 37... Kg8 38. Qg5+ Kf8) 34. Kg1 $2 {[%emt 0:01:05]} (34. f3 {Intending Qh8+ and mate.} Qd8 35. Qh8+ {[%mdl 64] Deflection} Ke7 36. Qxg7) 34... Qf3 $2 {[%emt 0:03:46]} (34... Ke7 $18 35. Qxg7 Qf3 36. Qxh6 Be1 37. Qg5+ Kf8) 35. Qh8+ {[%emt 0:00:06]} Ke7 {[%emt 0:00:02] [#] And now ...Be1 would win.} 36. Bb5 $1 {[%emt 0:00:20][%csl Gb5][%cal Rh8e8]} ({Not} 36. Qxg7 Be1 $14) 36... Qd1+ {[%emt 0:00:01]} 37. Kg2 {[%emt 0:00:07][%csl Gb5][%cal Rh8e8]} Qd8 {[%emt 0:01:23]} 38. Qxg7 {[%emt 0:00:04]} Qd5+ {[%emt 0:00:01]} 39. f3 {[%emt 0:00:19]} Kd8 {[%emt 0:00:17]} 40. Qf8+ {[%emt 0:00:25]} (40. e4 $142 Qb7 41. Qf8+ Kc7 42. Qd6+ Kc8 43. Ba6 Qxa6 44. Qxa6+ Kd7 45. Qd3+ Ke7 46. Qe3) 40... Kc7 {[%emt 0:00:01]} 41. Qxf7+ {[%emt 0:00:29]} Kb6 {[%emt 0:00:01]} 42. Qf4 {[%emt 0:00:03] Threatens to win with Bc4.} Bd2 {[%emt 0:01:29]} 43. Bc4 {[%emt 0:00:06]} Bxe3 {[%emt 0:00:05]} 44. Bxd5 {[%emt 0:00:02]} Bxf4 {[%emt 0:00:01]} 45. Bxe6 {[%emt 0:00:02]} (45. gxf4 $142 exd5 46. f5 Kc7 47. f6 Kd7 48. f4 d4 49. Kf3 c4 50. Ke4) 45... Bxe5 {[%emt 0:00:01] KB-KB} 46. f4 {[%emt 0:00:02]} Bc3 {[%emt 0:00:02]} 47. Kf3 {[%emt 0:00:05]} (47. Bc4 $142 Kc7 48. Kf3 Bd4 49. Ke4 Kd7 50. Kf5 Be3 51. Kf6 Bd4+ 52. Kg6) 47... Kc6 {[%emt 0:00:09]} 48. Ke4 {[%emt 0:00:03] White mates.} Kd6 {[%emt 0:00:06]} 49. Kf5 {[%emt 0:00:12]} Ke7 {[%emt 0:00:06]} 50. Bc4 {[%emt 0:00:08]} Be1 {[%emt 0:00:38]} 51. g4 {[%emt 0:00:06][%cal Bg3g4,Bg4g5][%mdl 32]} Bd2 {[%emt 0:00:03]} 52. g5 {[%emt 0:00:02]} Kf8 {[%emt 0:00:00]} 53. Kg6 {[%emt 0:00:11]} Bxf4 {[%emt 0:00:31]} 54. Kxh6 {[%emt 0:00:01]} ({Weaker is} 54. gxh6 Be3 55. h7 Bd4 $16) 54... Bd2 {[%emt 0:00:00]} 55. Kg6 {[%emt 0:00:02]} Be3 {[%emt 0:00:01]} 56. h6 {[%emt 0:00:02]} Bd2 {[%emt 0:00:01]} 57. Kh5 {[%emt 0:00:03]} Be3 {[%emt 0:00:01]} 58. g6 {[%emt 0:00:02]} Bd4 {[%emt 0:00:01] Weighted Error Value: White=0.39/Black=0.61} 1-0